[Event "GER-ch Youth U10w 2019"]
[Site "Willingen"]
[Date "2019.06.09"]
[Round "1.1"]
[White "Oellrich, Emma"]
[Black "Ezold, Johanna Sophie"]
[Result "0-1"]
[ECO "C53"]
[WhiteElo "1484"]
[BlackElo "1076"]
[Annotator "NA"]
[PlyCount "62"]
[EventDate "2019.06.07"]
[EventType "swiss"]
[EventRounds "11"]
[EventCountry "GER"]
[SourceTitle "playchess.com"]
[Source "ChessBase"]
[SourceQuality "1"]
[TimeControl "40/4500+30:900+30"]

1. e4 {[%emt 0:00:00]} e5 {[%emt 0:00:00]} 2. Nf3 {[%emt 0:00:00]} Nc6 {[%emt 0:00:00]} 3. Bc4 {[%emt 0:00:00]} Bc5 {[%emt 0:00:37]} 4. c3 {[%emt 0:00:06]} a5 {[%emt 0:00:44]} 5. d4 {[%emt 0:00:47]} Bb6 {[%emt 0:02:54]} 6. dxe5 {[%emt 0:01:25]} h6 {[%emt 0:01:17]} 7. O-O {[%emt 0:00:53]} d6 {[%emt 0:02:27]} 8. exd6 {[%emt 0:01:40]} cxd6 {[%emt 0:01:10]} 9. Re1 {[%emt 0:00:26]} Qe7 {[%emt 0:03:07]} 10. Qb3 {[%emt 0:00:17]} Ba7 {[%emt 0:01:59]} 11. Bf4 {[%emt 0:00:30]} Bb8 {[%emt 0:00:53]} 12. Nbd2 {[%emt 0:00:32]} Nf6 {[%emt 0:00:54]} 13. Bd5 {[%emt 0:00:34]} O-O {[%emt 0:01:34]} 14. Nc4 {[%emt 0:01:21]} Re8 {[%emt 0:02:14]} 15. Rad1 {[%emt 0:01:31]} Bg4 {[%emt 0:04:22]} 16. Re3 {[%emt 0:04:07]} Bxf3 {[%emt 0:02:25]} 17. gxf3 {[%emt 0:02:10]} Ra7 {[%emt 0:06:00]} 18. Bxc6 {[%emt 0:01:39]} bxc6 {[%emt 0:02:58]} 19. Nxd6 {[%emt 0:03:33]} Rd8 {[%emt 0:07:44]} 20. Nf5 {[%emt 0:12:03]} Qe8 {[%emt 0:01:41]} 21. Rxd8 {[%emt 0:00:15]} Qxd8 {[%emt 0:01:20]} 22. Qxb8 {[%emt 0:00:11]} Qxb8 {[%emt 0:00:54]} 23. Bxb8 {[%emt 0:00:06]} Rb7 {[%emt 0:00:26]} 24. Be5 {[%emt 0:01:30]} Nh5 {[%emt 0:01:06]} 25. b3 {[%emt 0:00:19]} f6 {[%emt 0:01:48]} 26. Bg3 {[%emt 0:03:14]} c5 {[%emt 0:01:44]} 27. Bd6 {[%emt 0:01:33]} g6 {[%emt 0:00:56]} 28. Nxh6+ {[%emt 0:00:09]} Kh7 {[%emt 0:00:54]} 29. Ng4 {[%emt 0:00:08]} g5 {[%emt 0:01:13]} 30. Bxc5 {[%emt 0:00:40]} Rd7 {[%emt 0:00:44]} 31. Bb6 {[%emt 0:02:33]} Rd1+ {[%emt 0:01:47] normal} 0-1

[Event "GER-ch Youth U10w 2019"]
[Site "Willingen"]
[Date "2019.06.09"]
[Round "1.2"]
[White "Hoffmann, Svenja"]
[Black "Mirnaya, Veronika"]
[Result "0-1"]
[ECO "C58"]
[WhiteElo "1072"]
[BlackElo "1237"]
[Annotator "NA"]
[PlyCount "60"]
[EventDate "2019.06.07"]
[EventType "swiss"]
[EventRounds "11"]
[EventCountry "GER"]
[SourceTitle "playchess.com"]
[Source "ChessBase"]
[SourceQuality "1"]
[TimeControl "40/4500+30:900+30"]

1. e4 {[%emt 0:00:00]} e5 {[%emt 0:00:00]} 2. Nf3 {[%emt 0:00:00]} Nc6 {[%emt 0:00:00]} 3. Bc4 {[%emt 0:00:00]} Nf6 {[%emt 0:00:00]} 4. Ng5 {[%emt 0:00:00]} d5 {[%emt 0:00:00]} 5. exd5 {[%emt 0:00:03]} Na5 {[%emt 0:00:13]} 6. Bb5+ {[%emt 0:00:23]} c6 {[%emt 0:00:08]} 7. dxc6 {[%emt 0:00:11]} bxc6 {[%emt 0:00:06]} 8. Ba4 {[%emt 0:00:29]} h6 {[%emt 0:01:11]} 9. Nf3 {[%emt 0:00:19]} e4 {[%emt 0:00:08]} 10. Ne5 {[%emt 0:00:31]} Qd5 {[%emt 0:05:03]} 11. d4 {[%emt 0:00:33]} exd3 {[%emt 0:00:19]} 12. Nxd3 {[%emt 0:00:28]} Bb7 {[%emt 0:02:10]} 13. Nc3 {[%emt 0:00:17]} Qd7 {[%emt 0:01:17]} 14. Be3 {[%emt 0:00:12]} Nc4 {[%emt 0:01:34]} 15. Qf3 {[%emt 0:00:42]} Nxe3 {[%emt 0:01:02]} 16. fxe3 {[%emt 0:00:16]} Bd6 {[%emt 0:01:36]} 17. O-O-O {[%emt 0:00:14]} O-O {[%emt 0:00:36]} 18. h4 {[%emt 0:00:13]} Qc7 {[%emt 0:00:24]} 19. Rhf1 {[%emt 0:01:01]} c5 {[%emt 0:00:38]} 20. g4 {[%emt 0:00:16]} Bxf3 {[%emt 0:00:13]} 21. Rxf3 {[%emt 0:00:16]} Nd7 {[%emt 0:02:18]} 22. Rg1 {[%emt 0:00:22]} Ne5 {[%emt 0:00:28]} 23. Nxe5 {[%emt 0:00:45]} Bxe5 {[%emt 0:00:11]} 24. g5 {[%emt 0:00:12]} h5 {[%emt 0:00:18]} 25. Bb5 {[%emt 0:00:42]} Bxc3 {[%emt 0:00:36]} 26. bxc3 {[%emt 0:00:11]} Qb7 {[%emt 0:00:21]} 27. Bc4 {[%emt 0:00:23]} Qxf3 {[%emt 0:00:12]} 28. Rf1 {[%emt 0:00:30]} Qxe3+ {[%emt 0:00:09]} 29. Kb1 {[%emt 0:00:21]} Rab8+ {[%emt 0:01:07]} 30. Ka1 {[%emt 0:00:18]} Qxc3# {[%emt 0:00:16] normal} 0-1

[Event "GER-ch Youth U10w 2019"]
[Site "Willingen"]
[Date "2019.06.09"]
[Round "1.5"]
[White "Trunz, Tamila"]
[Black "Niederdorfer, Mathilda"]
[Result "1-0"]
[ECO "B01"]
[WhiteElo "1273"]
[BlackElo "1036"]
[Annotator "NA"]
[PlyCount "81"]
[EventDate "2019.06.07"]
[EventType "swiss"]
[EventRounds "11"]
[EventCountry "GER"]
[SourceTitle "playchess.com"]
[Source "ChessBase"]
[SourceQuality "1"]
[TimeControl "40/4500+30:900+30"]

1. e4 {[%emt 0:00:00]} d5 {[%emt 0:00:00]} 2. exd5 {[%emt 0:00:00]} Qxd5 {[%emt 0:00:00]} 3. Nc3 {[%emt 0:00:00]} Qd6 {[%emt 0:00:00]} 4. Nf3 {[%emt 0:01:10]} c6 {[%emt 0:00:03]} 5. d4 {[%emt 0:00:12]} Bf5 {[%emt 0:00:19]} 6. Be2 {[%emt 0:00:55]} Nf6 {[%emt 0:00:55]} 7. O-O {[%emt 0:00:25]} e6 {[%emt 0:00:12]} 8. Re1 {[%emt 0:01:03]} Be7 {[%emt 0:00:27]} 9. Na4 {[%emt 0:02:05]} Nbd7 {[%emt 0:04:00]} 10. c4 {[%emt 0:01:17]} Qc7 {[%emt 0:02:27]} 11. Nc3 {[%emt 0:01:12]} O-O {[%emt 0:01:05]} 12. Bd3 {[%emt 0:02:32]} Bxd3 {[%emt 0:01:00]} 13. Qxd3 {[%emt 0:00:25]} Nb6 {[%emt 0:01:34]} 14. Ne5 {[%emt 0:01:13]} Rad8 {[%emt 0:04:12]} 15. Bf4 {[%emt 0:01:15]} Qc8 {[%emt 0:01:37]} 16. Rad1 {[%emt 0:02:51]} Bd6 {[%emt 0:01:11]} 17. c5 {[%emt 0:01:16]} Bxc5 {[%emt 0:00:09]} 18. Qg3 {[%emt 0:04:28]} Bd6 {[%emt 0:00:43]} 19. Bh6 {[%emt 0:02:25]} Nh5 {[%emt 0:01:23]} 20. Qg5 {[%emt 0:01:55]} f6 {[%emt 0:00:38]} 21. Qxh5 {[%emt 0:00:42]} fxe5 {[%emt 0:00:19]} 22. Qg5 {[%emt 0:01:24]} Rf7 {[%emt 0:00:34]} 23. dxe5 {[%emt 0:06:57]} Be7 {[%emt 0:00:26]} 24. Rxd8+ {[%emt 0:01:46]} Qxd8 {[%emt 0:00:16]} 25. Qg4 {[%emt 0:00:39]} Qd7 {[%emt 0:01:17]} 26. Ne4 {[%emt 0:00:53]} Kh8 {[%emt 0:00:36]} 27. Rd1 {[%emt 0:03:04]} Qc8 {[%emt 0:00:42]} 28. Bg5 {[%emt 0:04:12]} Bxg5 {[%emt 0:01:32]} 29. Nd6 {[%emt 0:02:50]} Qd7 {[%emt 0:01:20]} 30. Nxf7+ {[%emt 0:00:49]} Qxf7 {[%emt 0:00:08]} 31. Qxg5 {[%emt 0:00:31]} h6 {[%emt 0:00:13]} 32. Qd8+ {[%emt 0:01:21]} Kh7 {[%emt 0:00:08]} 33. h3 {[%emt 0:00:56]} Nd5 {[%emt 0:00:47]} 34. Rd3 {[%emt 0:01:59]} b6 {[%emt 0:00:26]} 35. Rf3 {[%emt 0:00:41]} Qb7 {[%emt 0:00:14]} 36. Qd6 {[%emt 0:00:31]} Qc8 {[%emt 0:01:14]} 37. Rf7 {[%emt 0:01:35]} Kg6 {[%emt 0:00:38]} 38. Rf8 {[%emt 0:02:15]} Qa6 {[%emt 0:00:25]} 39. Qxe6+ {[%emt 0:00:42]} Kh7 {[%emt 0:00:11]} 40. Qf5+ {[%emt 0:00:33]} g6 {[%emt 0:00:20]} 41. Qf7# {[%emt 0:15:26] normal} 1-0

[Event "GER-ch Youth U10w 2019"]
[Site "Willingen"]
[Date "2019.06.09"]
[Round "1.6"]
[White "Krasikova, Milana"]
[Black "Wartenberg, Alissa"]
[Result "0-1"]
[ECO "C48"]
[WhiteElo "1023"]
[BlackElo "1291"]
[Annotator "NA"]
[PlyCount "128"]
[EventDate "2019.06.07"]
[EventType "swiss"]
[EventRounds "11"]
[EventCountry "GER"]
[SourceTitle "playchess.com"]
[Source "ChessBase"]
[SourceQuality "1"]
[TimeControl "40/4500+30:900+30"]

1. e4 {[%emt 0:00:00]} e5 {[%emt 0:00:00]} 2. Nf3 {[%emt 0:00:00]} Nc6 {[%emt 0:00:00]} 3. Nc3 {[%emt 0:00:00]} Nf6 {[%emt 0:00:00]} 4. Bb5 {[%emt 0:00:00]} d6 {[%emt 0:00:30]} 5. d3 {[%emt 0:00:13]} Bd7 {[%emt 0:00:49]} 6. Bg5 {[%emt 0:00:27]} Be7 {[%emt 0:00:54]} 7. Qd2 {[%emt 0:00:50]} O-O {[%emt 0:01:10]} 8. O-O-O {[%emt 0:00:55]} h6 {[%emt 0:01:21]} 9. Bh4 {[%emt 0:02:05]} Nxe4 {[%emt 0:01:48]} 10. Nxe4 {[%emt 0:01:16]} Bxh4 {[%emt 0:00:09]} 11. Rdg1 {[%emt 0:01:01]} d5 {[%emt 0:01:25]} 12. Nc5 {[%emt 0:01:35]} Bf6 {[%emt 0:00:37]} 13. g4 {[%emt 0:01:17]} a6 {[%emt 0:04:04]} 14. Ba4 {[%emt 0:00:37]} Be7 {[%emt 0:04:13]} 15. Nxb7 {[%emt 0:02:12]} Qc8 {[%emt 0:00:54]} 16. Na5 {[%emt 0:00:26]} Bb4 {[%emt 0:00:18]} 17. c3 {[%emt 0:02:08]} Bxa5 {[%emt 0:00:12]} 18. g5 {[%emt 0:01:17]} g6 {[%emt 0:06:20]} 19. gxh6 {[%emt 0:00:23]} Qd8 {[%emt 0:11:46]} 20. h4 {[%emt 0:01:30]} Qf6 {[%emt 0:01:00]} 21. Rg3 {[%emt 0:01:35]} Qf4 {[%emt 0:00:25]} 22. Qxf4 {[%emt 0:01:51]} exf4 {[%emt 0:00:10]} 23. Rgg1 {[%emt 0:00:35]} Kh7 {[%emt 0:01:05]} 24. Ng5+ {[%emt 0:00:24]} Kxh6 {[%emt 0:00:24]} 25. Nf3 {[%emt 0:00:54]} Bb6 {[%emt 0:02:17]} 26. Rg2 {[%emt 0:00:36]} Rg8 {[%emt 0:02:27]} 27. Rgh2 {[%emt 0:00:25]} Bg4 {[%emt 0:03:28]} 28. Ng5 {[%emt 0:03:23]} Nd8 {[%emt 0:01:45]} 29. Bb3 {[%emt 0:00:15]} c6 {[%emt 0:01:07]} 30. c4 {[%emt 0:00:59]} Rc8 {[%emt 0:03:25]} 31. Kb1 {[%emt 0:01:19]} dxc4 {[%emt 0:01:28]} 32. Bxc4 {[%emt 0:00:33]} Kg7 {[%emt 0:00:46]} 33. Kc2 {[%emt 0:00:37]} Re8 {[%emt 0:00:57]} 34. f3 {[%emt 0:00:24]} Bh5 {[%emt 0:02:46]} 35. Kc3 {[%emt 0:00:54]} f6 {[%emt 0:01:06]} 36. Ne4 {[%emt 0:00:24]} Bc7 {[%emt 0:01:06]} 37. Rh3 {[%emt 0:00:45]} Ne6 {[%emt 0:02:37]} 38. b3 {[%emt 0:01:57]} Be5+ {[%emt 0:00:32]} 39. Kd2 {[%emt 0:01:53]} Nd4 {[%emt 0:01:49]} 40. Bxa6 {[%emt 0:02:12]} Nxf3+ {[%emt 0:00:44]} 41. Kc2 {[%emt 0:15:31]} Ra8 {[%emt 0:15:39]} 42. Nc5 {[%emt 0:01:40]} Bd4 {[%emt 0:01:05]} 43. b4 {[%emt 0:00:41]} Bxc5 {[%emt 0:00:32]} 44. bxc5 {[%emt 0:00:28]} Rxa6 {[%emt 0:00:04]} 45. Rb1 {[%emt 0:01:48]} Rxa2+ {[%emt 0:00:26]} 46. Kb3 {[%emt 0:00:30]} Rea8 {[%emt 0:00:07]} 47. Kc3 {[%emt 0:01:13]} R2a3+ {[%emt 0:01:01]} 48. Kc2 {[%emt 0:00:36]} R8a5 {[%emt 0:00:27]} 49. Rb7+ {[%emt 0:00:49]} Kh6 {[%emt 0:00:13]} 50. Kb2 {[%emt 0:02:00]} Rxd3 {[%emt 0:00:26]} 51. Rh1 {[%emt 0:00:44]} Rxc5 {[%emt 0:00:15]} 52. Ra1 {[%emt 0:00:32]} Nd4 {[%emt 0:00:32]} 53. Rc1 {[%emt 0:00:32]} Ra5 {[%emt 0:01:02]} 54. Rb4 {[%emt 0:00:49]} f3 {[%emt 0:00:45]} 55. Rb7 {[%emt 0:01:57]} f2 {[%emt 0:00:32]} 56. Rf7 {[%emt 0:00:21]} Be2 {[%emt 0:00:29]} 57. Rxf6 {[%emt 0:00:39]} f1=Q 58. Rcxf1 {[%emt 0:00:17]} Bxf1 {[%emt 0:00:24]} 59. Rxf1 {[%emt 0:00:06]} Rb3+ {[%emt 0:00:27]} 60. Kc1 {[%emt 0:00:19]} Ra1+ {[%emt 0:00:23]} 61. Kd2 {[%emt 0:00:30]} Rxf1 {[%emt 0:00:53]} 62. h5 Rf2+ 63. Ke1 {[%emt 0:01:39]} Ra2 {[%emt 0:00:38]} 64. hxg6 {[%emt 0:00:30]} Rb1# {normal} 0-1

[Event "GER-ch Youth U10w 2019"]
[Site "Willingen"]
[Date "2019.06.09"]
[Round "2.1"]
[White "Mirnaya, Veronika"]
[Black "Czaeczine, Paula"]
[Result "1-0"]
[ECO "C78"]
[WhiteElo "1237"]
[BlackElo "1170"]
[Annotator "NA"]
[PlyCount "49"]
[EventDate "2019.06.07"]
[EventType "swiss"]
[EventRounds "11"]
[EventCountry "GER"]
[SourceTitle "playchess.com"]
[Source "ChessBase"]
[SourceQuality "1"]
[TimeControl "40/4500+30:900+30"]

1. e4 {[%emt 0:00:00]} e5 {[%emt 0:00:00]} 2. Nf3 {[%emt 0:00:00]} Nc6 {[%emt 0:00:00]} 3. Bb5 {[%emt 0:00:00]} a6 {[%emt 0:00:00]} 4. Ba4 {[%emt 0:00:00]} Nf6 {[%emt 0:00:00]} 5. O-O {[%emt 0:00:47]} d5 {[%emt 0:00:00]} 6. Nxe5 {[%emt 0:04:27]} Bd7 {[%emt 0:02:28]} 7. Nxd7 {[%emt 0:01:23]} Qxd7 {[%emt 0:00:20]} 8. Re1 {[%emt 0:01:38]} dxe4 {[%emt 0:00:34]} 9. Nc3 {[%emt 0:00:55]} Qf5 {[%emt 0:02:35]} 10. d3 {[%emt 0:01:37]} O-O-O {[%emt 0:00:12]} 11. Bxc6 {[%emt 0:02:36]} bxc6 {[%emt 0:00:31]} 12. d4 {[%emt 0:01:33]} Bb4 {[%emt 0:01:50]} 13. Be3 {[%emt 0:02:57]} Rhe8 {[%emt 0:02:26]} 14. Qe2 {[%emt 0:00:55]} Bxc3 {[%emt 0:03:37]} 15. Qxa6+ {[%emt 0:00:26]} Kb8 {[%emt 0:01:03]} 16. bxc3 {[%emt 0:00:12]} Nd5 {[%emt 0:01:45]} 17. Rab1+ {[%emt 0:00:43]} Nb6 {[%emt 0:00:12]} 18. d5 {[%emt 0:00:49]} Qc8 19. Qa4 {[%emt 0:08:01]} Qb7 {[%emt 0:02:51]} 20. dxc6 {[%emt 0:10:18]} Nxa4 {[%emt 0:00:32]} 21. Rxb7+ {[%emt 0:02:31]} Ka8 {[%emt 0:00:14]} 22. Ra7+ {[%emt 0:00:14]} Kb8 {[%emt 0:00:10]} 23. Rxa4 {[%emt 0:00:26]} Re6 {[%emt 0:01:41]} 24. Rb1+ {[%emt 0:00:16]} Kc8 {[%emt 0:00:11]} 25. Ra8# {[%emt 0:00:05] normal} 1-0

[Event "GER-ch Youth U10w 2019"]
[Site "Willingen"]
[Date "2019.06.09"]
[Round "2.2"]
[White "Proettel, Ela"]
[Black "Heutling, Sarah"]
[Result "0-1"]
[ECO "D70"]
[WhiteElo "1333"]
[BlackElo "1147"]
[Annotator "NA"]
[PlyCount "32"]
[EventDate "2019.06.07"]
[EventType "swiss"]
[EventRounds "11"]
[EventCountry "GER"]
[SourceTitle "playchess.com"]
[Source "ChessBase"]
[SourceQuality "1"]
[TimeControl "40/4500+30:900+30"]

1. d4 {[%emt 0:00:00]} Nf6 {[%emt 0:00:00]} 2. c4 {[%emt 0:00:25]} g6 {[%emt 0:00:00]} 3. Nf3 {[%emt 0:01:03]} Bg7 {[%emt 0:00:00]} 4. g3 {[%emt 0:00:45]} O-O {[%emt 0:00:05]} 5. Bg2 {[%emt 0:00:36]} d6 {[%emt 0:00:17]} 6. O-O {[%emt 0:00:42]} c5 {[%emt 0:01:51]} 7. dxc5 {[%emt 0:02:50]} dxc5 {[%emt 0:00:08]} 8. Nc3 {[%emt 0:05:10]} Bf5 {[%emt 0:03:23]} 9. Ne5 {[%emt 0:08:06]} Nbd7 {[%emt 0:03:28]} 10. Nxd7 {[%emt 0:01:35]} Qxd7 {[%emt 0:00:14]} 11. Qxd7 {[%emt 0:00:54]} Nxd7 {[%emt 0:00:11]} 12. Bxb7 {[%emt 0:01:14]} Rab8 {[%emt 0:00:13]} 13. Bg2 {[%emt 0:01:17]} Ne5 {[%emt 0:03:41]} 14. Bf4 {[%emt 0:16:19]} Rxb2 {[%emt 0:01:57]} 15. Bxe5 {[%emt 0:12:44]} Bxe5 {[%emt 0:00:16]} 16. Nd5 {[%emt 0:05:33]} Re8 {[%emt 0:01:22] normal} 0-1

[Event "GER-ch Youth U10w 2019"]
[Site "Willingen"]
[Date "2019.06.09"]
[Round "2.3"]
[White "Halas, Neele Zoe"]
[Black "Trunz, Tamila"]
[Result "1-0"]
[ECO "C45"]
[WhiteElo "1109"]
[BlackElo "1273"]
[Annotator "NA"]
[PlyCount "52"]
[EventDate "2019.06.07"]
[EventType "swiss"]
[EventRounds "11"]
[EventCountry "GER"]
[SourceTitle "playchess.com"]
[Source "ChessBase"]
[SourceQuality "1"]
[TimeControl "40/4500+30:900+30"]

1. e4 {[%emt 0:00:00]} e5 {[%emt 0:00:00]} 2. Nf3 {[%emt 0:00:00]} Nc6 {[%emt 0:00:00]} 3. d4 {[%emt 0:00:00]} exd4 {[%emt 0:00:00]} 4. Nxd4 {[%emt 0:00:00]} Nf6 {[%emt 0:00:05]} 5. Nxc6 {[%emt 0:00:02]} bxc6 {[%emt 0:00:13]} 6. e5 {[%emt 0:00:06]} Qe7 {[%emt 0:00:19]} 7. Qe2 {[%emt 0:00:08]} Nd5 {[%emt 0:00:20]} 8. c4 {[%emt 0:00:08]} Ba6 {[%emt 0:00:05]} 9. b3 {[%emt 0:00:08]} O-O-O {[%emt 0:00:31]} 10. Qe4 {[%emt 0:00:59]} Nb6 {[%emt 0:00:30]} 11. Bd3 {[%emt 0:00:52]} d5 {[%emt 0:02:12]} 12. exd6 {[%emt 0:04:14]} Qxd6 {[%emt 0:03:25]} 13. Ke2 {[%emt 0:08:29]} Qf6 {[%emt 0:01:37]} 14. Qf5+ {[%emt 0:01:25]} Kb8 {[%emt 0:00:59]} 15. Qxf6 {[%emt 0:00:19]} gxf6 {[%emt 0:01:00]} 16. Rd1 {[%emt 0:01:04]} Bc5 {[%emt 0:00:47]} 17. Bb2 {[%emt 0:01:38]} Rhe8+ {[%emt 0:00:40]} 18. Kf1 {[%emt 0:00:41]} Re6 {[%emt 0:02:43]} 19. Nc3 {[%emt 0:04:04]} h6 {[%emt 0:03:27]} 20. Bf5 {[%emt 0:01:24]} Red6 {[%emt 0:03:16]} 21. Rxd6 {[%emt 0:02:48]} cxd6 {[%emt 0:00:41]} 22. Ne4 {[%emt 0:00:54]} Bb4 {[%emt 0:02:33]} 23. a3 {[%emt 0:01:30]} d5 {[%emt 0:01:47]} 24. axb4 {[%emt 0:01:17]} dxe4 {[%emt 0:00:36]} 25. Rxa6 {[%emt 0:01:06]} Re8 {[%emt 0:07:30]} 26. c5 {[%emt 0:01:01]} Nd5 {[%emt 0:01:04] normal} 1-0

[Event "GER-ch Youth U10w 2019"]
[Site "Willingen"]
[Date "2019.06.09"]
[Round "2.4"]
[White "Wartenberg, Alissa"]
[Black "Haug, Mara"]
[Result "1-0"]
[ECO "C47"]
[WhiteElo "1291"]
[BlackElo "1097"]
[Annotator "NA"]
[PlyCount "43"]
[EventDate "2019.06.07"]
[EventType "swiss"]
[EventRounds "11"]
[EventCountry "GER"]
[SourceTitle "playchess.com"]
[Source "ChessBase"]
[SourceQuality "1"]
[TimeControl "40/4500+30:900+30"]

1. e4 {[%emt 0:00:00]} e5 {[%emt 0:00:00]} 2. Nf3 {[%emt 0:00:00]} Nc6 {[%emt 0:00:19]} 3. Nc3 {[%emt 0:00:00]} Nf6 {[%emt 0:01:14]} 4. d4 {[%emt 0:00:00]} exd4 {[%emt 0:04:25]} 5. Nxd4 {[%emt 0:00:00]} Bb4 {[%emt 0:01:07]} 6. Nxc6 {[%emt 0:00:14]} bxc6 {[%emt 0:01:35]} 7. Bd3 {[%emt 0:00:10]} d5 {[%emt 0:09:29]} 8. exd5 {[%emt 0:02:45]} cxd5 {[%emt 0:01:47]} 9. O-O {[%emt 0:00:11]} O-O {[%emt 0:00:57]} 10. Bg5 {[%emt 0:00:30]} Bxc3 {[%emt 0:06:43]} 11. bxc3 {[%emt 0:00:13]} Rb8 {[%emt 0:00:08]} 12. Qf3 {[%emt 0:01:20]} Rb6 {[%emt 0:03:47]} 13. c4 {[%emt 0:02:34]} Bb7 {[%emt 0:03:28]} 14. cxd5 {[%emt 0:07:55]} Bxd5 {[%emt 0:00:54]} 15. Bxf6 {[%emt 0:00:35]} Rxf6 {[%emt 0:00:33]} 16. Qh3 {[%emt 0:00:43]} Rh6 {[%emt 0:01:49]} 17. Qg3 {[%emt 0:01:33]} Qd6 {[%emt 0:02:23]} 18. Qxd6 {[%emt 0:00:50]} cxd6 {[%emt 0:00:07]} 19. Rfe1 {[%emt 0:00:51]} Rb8 {[%emt 0:03:18]} 20. Re7 {[%emt 0:00:37]} a5 {[%emt 0:02:31]} 21. Ra7 {[%emt 0:00:29]} Ra8 {[%emt 0:02:44]} 22. Rb1 {[%emt 0:01:07] normal} 1-0

[Event "GER-ch Youth U10w 2019"]
[Site "Willingen"]
[Date "2019.06.09"]
[Round "2.5"]
[White "Glotz, Diana"]
[Black "Wehling, Ida"]
[Result "1-0"]
[ECO "A22"]
[WhiteElo "1244"]
[BlackElo "1093"]
[Annotator "NA"]
[PlyCount "65"]
[EventDate "2019.06.07"]
[EventType "swiss"]
[EventRounds "11"]
[EventCountry "GER"]
[SourceTitle "playchess.com"]
[Source "ChessBase"]
[SourceQuality "1"]
[TimeControl "40/4500+30:900+30"]

1. c4 {[%emt 0:00:00]} e5 {[%emt 0:00:00]} 2. Nc3 {[%emt 0:00:08]} Nf6 {[%emt 0:00:00]} 3. g3 {[%emt 0:00:12]} Bc5 {[%emt 0:00:00]} 4. Bg2 {[%emt 0:00:30]} d6 {[%emt 0:00:29]} 5. e3 {[%emt 0:00:30]} Nbd7 {[%emt 0:02:03]} 6. Nge2 {[%emt 0:01:44]} Nf8 {[%emt 0:01:06]} 7. d4 {[%emt 0:00:30]} Bb6 {[%emt 0:00:34]} 8. dxe5 {[%emt 0:04:41]} dxe5 {[%emt 0:02:24]} 9. Qxd8+ {[%emt 0:00:08]} Kxd8 {[%emt 0:00:09]} 10. O-O {[%emt 0:00:08]} Ne6 {[%emt 0:00:26]} 11. Rd1+ {[%emt 0:00:50]} Ke7 {[%emt 0:00:06]} 12. b4 {[%emt 0:01:31]} a6 {[%emt 0:00:32]} 13. c5 {[%emt 0:00:23]} Ba7 {[%emt 0:00:06]} 14. f4 exf4 {[%emt 0:02:03]} 15. gxf4 {[%emt 0:02:31]} Re8 {[%emt 0:00:15]} 16. c6 {[%emt 0:00:27]} Rb8 {[%emt 0:00:20]} 17. f5 {[%emt 0:05:12]} Ng5 {[%emt 0:02:02]} 18. b5 {[%emt 0:00:20]} Bxf5 {[%emt 0:01:06]} 19. Ba3+ {[%emt 0:01:30]} Ke6 {[%emt 0:02:32]} 20. Nf4+ {[%emt 0:00:33]} Ke5 {[%emt 0:00:53]} 21. Kf2 {[%emt 0:01:20]} Ng4+ {[%emt 0:01:14]} 22. Kg3 {[%emt 0:06:24]} Nxe3 {[%emt 0:02:06]} 23. Re1 {[%emt 0:02:30]} Kf6 {[%emt 0:00:26]} 24. Ncd5+ {[%emt 0:00:22]} Nxd5 {[%emt 0:00:20]} 25. Nxd5+ {[%emt 0:00:10]} Kg6 {[%emt 0:00:10]} 26. Nf4+ {[%emt 0:00:28]} Kh6 {[%emt 0:00:20]} 27. h4 {[%emt 0:06:10]} Ne4+ {[%emt 0:00:48]} 28. Kh2 {[%emt 0:04:51]} axb5 {[%emt 0:00:22]} 29. cxb7 {[%emt 0:00:18]} Rxb7 {[%emt 0:00:13]} 30. Bf3 {[%emt 0:05:13]} Bb8 {[%emt 0:00:41]} 31. Bc1 {[%emt 0:00:18]} g5 {[%emt 0:00:42]} 32. hxg5+ {[%emt 0:00:52]} Kxg5 {[%emt 0:00:11]} 33. Nd5+ {[%emt 0:00:22] normal} 1-0

[Event "GER-ch Youth U10w 2019"]
[Site "Willingen"]
[Date "2019.06.09"]
[Round "2.6"]
[White "Bako, Isabella"]
[Black "Stepanjan, Tatevik Mia"]
[Result "1-0"]
[ECO "C79"]
[WhiteElo "1215"]
[BlackElo "940"]
[Annotator "NA"]
[PlyCount "45"]
[EventDate "2019.06.07"]
[EventType "swiss"]
[EventRounds "11"]
[EventCountry "GER"]
[SourceTitle "playchess.com"]
[Source "ChessBase"]
[SourceQuality "1"]
[TimeControl "40/4500+30:900+30"]

1. e4 {[%emt 0:00:00]} e5 {[%emt 0:00:00]} 2. Nf3 {[%emt 0:00:00]} Nc6 {[%emt 0:00:00]} 3. Bb5 {[%emt 0:00:00]} a6 {[%emt 0:00:00]} 4. Ba4 {[%emt 0:00:05]} Nf6 {[%emt 0:00:00]} 5. O-O {[%emt 0:00:43]} d6 {[%emt 0:00:13]} 6. c3 {[%emt 0:00:56]} Nxe4 {[%emt 0:00:11]} 7. d4 {[%emt 0:01:53]} exd4 {[%emt 0:00:19]} 8. Re1 {[%emt 0:00:26]} Bf5 {[%emt 0:00:38]} 9. Nxd4 Qd7 {[%emt 0:01:09]} 10. Nxf5 {[%emt 0:03:16]} Qxf5 {[%emt 0:00:13]} 11. f3 {[%emt 0:01:22]} Be7 {[%emt 0:00:59]} 12. Rxe4 Qc5+ {[%emt 0:01:01]} 13. Be3 {[%emt 0:03:00]} Qh5 {[%emt 0:00:53]} 14. Bxc6+ {[%emt 0:00:37]} bxc6 {[%emt 0:00:06]} 15. Qe2 {[%emt 0:03:21]} O-O {[%emt 0:00:23]} 16. Rxe7 {[%emt 0:00:25]} Rae8 {[%emt 0:02:35]} 17. Rxc7 {[%emt 0:01:39]} c5 {[%emt 0:00:38]} 18. Nd2 {[%emt 0:00:55]} f5 {[%emt 0:00:49]} 19. Nc4 {[%emt 0:00:58]} f4 {[%emt 0:00:54]} 20. Nxd6 {[%emt 0:01:57]} Rxe3 {[%emt 0:00:14]} 21. Qc4+ {[%emt 0:01:38]} Rf7 {[%emt 0:08:35]} 22. Rc8+ {[%emt 0:00:00]} Re8 {[%emt 0:01:00]} 23. Rxe8# {normal} 1-0